[Event "Frauenbundesliga 2024-25"]
[Site "Germany"]
[Date "2025.01.26"]
[Round "4.6"]
[White "Scognamiglio, Stefanie"]
[Black "Peglau, Sarah"]
[Result "1-0"]
[Annotator "TA"]
[ECO "A36"]
[WhiteElo "2084"]
[BlackElo "1870"]
[PlyCount "77"]
[EventDate "2024.11.06"]
[EventType "team-tourn"]
[EventCountry "GER"]
[SourceTitle "playchess.com"]
[Source "ChessBase"]
[SourceQuality "1"]
[TimeControl "40/5400+30:1800+30"]

{[%evp 17,77,14,17,-1,29,29,43,43,43,41,62,30,42,33,31,14,18,3,10,-8,-2,-36,0,0,34,35,81,83,84,79,123,125,110,115,581,16,13,14,16,17,25,24,27,18,27,0,0,0,17,15,85,89,112,0,0,-51,2393,2315,29987,29988,29988,29989]} 1. e4 {[%emt 0:00:02]} e6 {[%emt 0:00:06]} 2. d3 {[%emt 0:00:52]} c5 {[%emt 0:00:12]} 3. g3 {[%emt 0:00:24]} Nc6 {[%emt 0:01:36]} 4. Bg2 {[%emt 0:00:18]} g6 {[%emt 0:01:00]} 5. c4 {[%emt 0:02:28]} Bg7 {[%emt 0:01:02]} 6. Ne2 {[%emt 0:01:58]} Nge7 {[%emt 0:01:17]} 7. Nbc3 {[%emt 0:00:07]} a6 {[%emt 0:06:33]} 8. O-O $1 {[%emt 0:00:57] 8.0-0 scores better than 8.Be3.} O-O {[%emt 0:00:06]} 9. Be3 {[%emt 0:00:21]} Nd4 {[%emt 0:03:19]} 10. Qd2 {[%emt 0:01:07] A36: Symmetrical English vs ...g6: 4 Bg2 Bg7.} Re8 {[%emt 0:07:45]} 11. Bh6 {[%emt 0:02:08]} Bh8 {[%emt 0:01:00]} 12. Nxd4 {[%emt 0:00:28] White is slightly better.} cxd4 {[%emt 0:03:08]} 13. Ne2 {[%emt 0:00:59]} Rb8 $146 {[%emt 0:03:13]} (13... b5 14. cxb5 axb5 15. Rfc1 Qb6 16. a3 Bb7 17. Qb4 Nc6 18. Qb3 Bf6 19. Bd2 Red8 {0-1 Beller,J-Schork,S (2170) Bad Wildbad op 3rd 2002 (1)}) 14. h4 {[%emt 0:07:45]} b5 {[%emt 0:02:43]} 15. c5 {[%emt 0:06:18]} b4 {[%emt 0:04:14]} 16. h5 {[%emt 0:29:20]} Rb5 {[%emt 0:01:09]} 17. Rac1 {[%emt 0:03:07][%cal Ba1c1,Bc1c4,Bc4d4][%mdl 32]} Qa5 {[%emt 0:03:31]} 18. hxg6 {[%emt 0:03:07]} hxg6 {[%emt 0:00:07]} 19. Rc4 {[%emt 0:08:48]} Nc6 {[%emt 0:00:37]} 20. Nc1 {[%emt 0:01:40]} Ne5 {[%emt 0:01:50]} 21. Rxd4 {[%emt 0:04:41]} Ng4 {[%emt 0:02:25] [#]} (21... Nf3+ 22. Bxf3 Bxd4 23. Nb3 $16) (21... b3 $14 22. a4 (22. axb3 Nf3+ 23. Bxf3 Bxd4 $15) (22. Nxb3 Qxa2 23. Nc1 Qxb2 $15) 22... Qxd2 23. Bxd2 Rxc5) 22. Rc4 $1 $16 {[%emt 0:01:59]} (22. Nb3 Qxa2 23. Nc1 Qa4 $17) 22... Nxh6 {[%emt 0:00:24]} 23. Qxh6 {[%emt 0:00:58]} Bxb2 {[%emt 0:00:32][%cal Ob5b8]} 24. d4 {[%emt 0:00:41]} Bxc1 {[%emt 0:03:42]} 25. Rcxc1 {[%emt 0:04:11]} e5 $2 {[%emt 0:03:08][%mdl 8192]} (25... Bb7 $16 {is a better chance.}) 26. d5 $2 {[%emt 0:04:14]} (26. f4 $18) 26... Rxc5 $11 {[%emt 0:00:18]} 27. Bf3 {[%emt 0:03:26]} Rxc1 {[%emt 0:10:10]} 28. Rxc1 {[%emt 0:00:02]} Qb6 {[%emt 0:00:02]} (28... Qxa2 $2 29. Kg2 $18) 29. Kg2 {[%emt 0:01:15][%mdl 1024] White has compensation.} a5 {[%emt 0:01:26]} 30. Rh1 {[%emt 0:00:57]} Qf6 {[%emt 0:00:14] Dodges Qh8+} 31. d6 {[%emt 0:00:19]} Qg7 {[%emt 0:01:27] White must now prevent ...Qxh6. Prevents Qh7+.} 32. Qc1 {[%emt 0:01:41]} Qf8 {[%emt 0:07:56]} 33. Qc7 {[%emt 0:01:13][%cal Oh1d1]} Ba6 {[%emt 0:13:35]} (33... Kg7 $11) 34. Qxd7 $40 {[%emt 0:02:53][%mdl 128] Threatens to win with Qc6. White wants a kill. White is much more active.} ({Don't play} 34. Qxa5 Qxd6 35. Rd1 Qe6 $11 (35... Bd3 36. Qa7 $11)) 34... Rd8 {[%emt 0:01:19] [#]} 35. Qh3 {[%emt 0:01:22]} (35. Qg4 $1 $16 {[%cal Rg4h4]}) 35... Qg7 $1 $11 {[%emt 0:02:07]} 36. Qh4 {[%emt 0:00:36]} (36. d7 $11) 36... Rxd6 $2 {[%emt 0:01:50][%mdl 8192]} (36... g5 $15 37. Qh3 Rxd6) 37. Qe7 $18 {[%emt 0:00:07] Qe8+ would kill now.} Re6 {[%emt 0:10:31]} 38. Qd8+ {[%emt 0:00:12]} Qf8 {[%emt 0:00:06] [#]} 39. Rh8+ $3 {[%emt 0:00:05][%mdl 512] Weighted Error Value: White=0.36/Black=0.73  Loses game:     	---       	Black=2      Missed win:     	White=1     	---        Mistake:       	White=2     	Black=2      Inaccurate:     	White=3     	Black=5      OK:         	White=9     	Black=8      Best:        	White=3     	Black=3      Strong:       	White=1     	Black=1} 1-0

[Event "Frauenbundesliga 2024-25"]
[Site "Germany"]
[Date "2025.01.26"]
[Round "4.6"]
[White "Werner, Carolin"]
[Black "Babiy, Olga"]
[Result "0-1"]
[Annotator "TA"]
[ECO "B45"]
[WhiteElo "1971"]
[BlackElo "2299"]
[PlyCount "108"]
[EventDate "2024.11.06"]
[EventType "team-tourn"]
[EventCountry "GER"]
[SourceTitle "playchess.com"]
[Source "ChessBase"]
[SourceQuality "1"]
[TimeControl "40/5400+30:1800+30"]

{[%evp 14,108,-41,-31,-39,-127,-126,-132,-103,-114,-119,-105,-111,-108,-108,-202,-211,-256,-214,-415,-406,-820,-377,-368,-331,-320,-317,-318,-316,-314,-270,-304,-278,-282,-275,-277,-268,-279,-274,-289,-288,-289,-289,-292,-291,-383,-368,-374,-366,-368,-349,-444,-430,-440,-443,-505,-449,-457,-438,-453,-451,-477,-431,-502,-400,-2416,-2136,-2235,-2041,-5517,-2759,-29966,-2456,-29968,-29969,-29971,-29972,-29972,-29973,-29973,-29975,-29978,-29979,-29979,-29980,-29980,-29981,-29981,-29982,-29982,-29982,-29982,-29982,-29982,-29983,-29984,-29985]} 1. e4 {[%emt 0:00:03]} c5 {[%emt 0:00:12]} 2. Nf3 {[%emt 0:00:15]} e6 {[%emt 0:00:10]} 3. d4 {[%emt 0:00:06]} cxd4 {[%emt 0:00:10]} 4. Nxd4 {[%emt 0:00:06]} Nf6 {[%emt 0:00:12]} 5. Nc3 {[%emt 0:00:10]} Nc6 {[%emt 0:00:04]} 6. Be3 {[%emt 0:10:03]} Bb4 {[%emt 0:01:47]} 7. f3 {[%emt 0:01:08]} d5 {[%emt 0:02:23]} 8. Bb5 {[%emt 0:08:58]} Qc7 {[%emt 0:11:40] B45: Sicilian Four Knights.} 9. Qd3 {[%emt 0:10:07]} (9. O-O $15 O-O 10. exd5 Bxc3 11. bxc3 Nxd5 (11... exd5 12. Qd2 $14) 12. Qd2) 9... O-O $17 {[%emt 0:03:10]} 10. Bxc6 {[%emt 0:10:05]} bxc6 {[%emt 0:00:09] Black is clearly better.} 11. a3 {[%emt 0:12:12]} Bd6 {[%emt 0:07:53]} 12. exd5 {[%emt 0:02:07]} exd5 {[%emt 0:01:30][%cal Of8e8]} (12... cxd5 13. Ndb5 Qd7 14. Nxd6 Qxd6 15. O-O-O) 13. O-O-O {[%emt 0:05:07]} Nd7 $146 {[%emt 0:12:42][%cal Od7e5]} (13... Bxh2 14. Nxc6 Bb7 15. Ne7+ (15. Nxd5 $2 Nxd5 16. Qxd5 Bxc6 $19) (15. Nxa7 Qg3 $16) 15... Qxe7 16. Rxh2 $16) (13... Rb8 14. h4 Re8 15. Bg5 Nh5 16. Rde1 Bd7 17. Rxe8+ Rxe8 18. Nde2 f5 19. g4 Nf4 {0-1 Betko,L-Efler,D (2340) CSR-ch Prague 1992 (3)}) 14. Qd2 {[%emt 0:30:28] [#]} (14. Ncb5 $17 cxb5 15. Nxb5) 14... Nb6 $1 $19 {[%emt 0:05:21][%cal Ob6c4]} (14... Bxh2 $2 15. f4 $18 (15. Nxc6 d4 $16)) 15. Rhe1 {[%emt 0:05:38]} Nc4 {[%emt 0:01:43]} (15... Bxh2 16. b3 $17) 16. Ndb5 $2 {[%emt 0:01:11]} (16. Qf2 {was the only chance.}) 16... cxb5 {[%emt 0:01:19]} 17. Nxb5 {[%emt 0:00:39]} (17. Nxd5 $142 Nxd2 18. Nxc7 Nb3+ (18... Bxc7 $2 19. Bxd2 Be6 20. h3 $19) 19. cxb3 Bxc7 20. Bc5) 17... Nxd2 {[%emt 0:02:42]} (17... Qb8 $142 18. Qxd5 Nxe3 (18... Bxh2 19. Qxc4 Bf5 20. Nc3 $16) 19. Rxe3 Bf4 (19... Bxh2 $2 20. Kb1 $19)) 18. Nxc7 {[%emt 0:00:03]} Bxc7 {[%emt 0:00:09]} 19. Rxd2 {[%emt 0:00:51]} Be6 {[%emt 0:00:23]} 20. g3 {[%emt 0:00:15]} Rfc8 {[%emt 0:00:30]} 21. Bd4 {[%emt 0:00:25]} Bb6 {[%emt 0:01:07]} 22. Re3 {[%emt 0:00:46]} Rc4 {[%emt 0:00:54]} 23. Bxb6 {[%emt 0:00:19]} axb6 {[%emt 0:00:08]} 24. Rb3 {[%emt 0:00:26]} Rc6 {[%emt 0:00:09]} 25. Rb4 {[%emt 0:00:32]} Rac8 {[%emt 0:01:04]} 26. Kd1 {[%emt 0:00:29]} Kf8 {[%emt 0:00:26]} 27. c3 {[%emt 0:00:30]} Ke7 {[%emt 0:00:11]} 28. Ke2 {[%emt 0:00:53]} Kd6 {[%emt 0:00:23]} 29. c4 {[%emt 0:00:25]} Rxc4 {[%emt 0:00:17]} 30. Rxb6+ {[%emt 0:00:06]} R8c6 {[%emt 0:00:14]} 31. Rb5 {[%emt 0:00:44]} Rc2 {[%emt 0:00:22]} 32. a4 {[%emt 0:00:24]} R6c5 {[%emt 0:04:51]} 33. Rb6+ {[%emt 0:00:53]} Kc7 {[%emt 0:02:30]} 34. Rb4 {[%emt 0:00:14]} R5c4 {[%emt 0:03:51]} 35. Rxc2 {[%emt 0:00:08]} Rxc2+ {[%emt 0:00:04][%mdl 4096] Endgame KRB-KR} 36. Kd3 {[%emt 0:00:43]} Rxh2 {[%emt 0:00:15]} 37. a5 {[%emt 0:00:50]} Bc8 {[%emt 0:00:32]} 38. Rb6 {[%emt 0:00:35]} Rh6 {[%emt 0:01:11]} 39. Rxh6 {[%emt 0:01:06]} (39. Rb3 $142) 39... gxh6 {[%emt 0:00:06] KB-KP} 40. Kd4 {[%emt 0:00:00]} Kd6 {[%emt 0:00:14] [#] White must now prevent ...Bb7.} 41. f4 {[%emt 0:04:56]} Ba6 {[%emt 0:05:03] ( -> ...h5)} 42. b3 {[%emt 0:01:53]} Bf1 {[%emt 0:01:35]} (42... h5 $142 43. b4 Kc6 44. Ke5 Bb7 45. Kd4 Kb5 46. f5 f6 (46... Kxb4 $2 47. a6 $19) 47. Kc3 Ba8 48. Kd4 Kxb4 49. a6 Kb5 50. a7 Kb4 (50... Kb6 $2 51. Ke3 $19) 51. Kd3 Kc5 52. Ke3 Kc4 (52... Kb6 $2 53. Kf4 $19) 53. Kf2 d4 54. Ke1 Kc3 55. g4 hxg4 56. Kf2 d3 57. Kg3 d2 58. Kh4 d1=Q (58... d1=R {gets mated.} 59. Kg3 h5 60. Kh4 Rh1+ 61. Kg3 Rh3+ 62. Kf2 Kd3 63. Kf1 Ke3 64. Kg1 Rh1#) 59. Kh5 Qh1+ 60. Kxg4 Qg2+ 61. Kh4 Qh2+ 62. Kg4 h5#) 43. b4 {[%emt 0:08:46]} h5 {[%emt 0:03:13] Black mates.} 44. Ke3 {[%emt 0:02:27]} Kc6 {[%emt 0:01:04]} 45. Kd4 {[%emt 0:00:38]} Bc4 {[%emt 0:00:22]} 46. Ke5 {[%emt 0:02:07]} Kb5 {[%emt 0:00:49]} 47. Kd4 {[%emt 0:00:36]} Kxb4 {[%emt 0:00:28]} 48. a6 {[%emt 0:00:02]} Bxa6 {[%emt 0:00:07]} 49. Kxd5 {[%emt 0:00:09] KB-KPP} Kc3 {[%emt 0:00:38]} 50. Ke5 {[%emt 0:03:00]} Kd3 {[%emt 0:00:17]} 51. Kf6 {[%emt 0:00:38]} Bc4 {[%emt 0:00:35]} 52. Kg5 {[%emt 0:05:03]} Ke4 {[%emt 0:00:23]} 53. Kxh5 {[%emt 0:00:45]} Kf3 {[%emt 0:00:14]} 54. Kh4 {[%emt 0:04:51]} Be6 {[%emt 0:00:12] Black took control after the opening.   Weighted Error Value: White=1.03/Black=0.59  Mistake:       	White=5     	Black=1      Inaccurate:     	White=1     	---        OK:         	White=12    	Black=14} 0-1

[Event "Frauenbundesliga 2024-25"]
[Site "Germany"]
[Date "2025.01.26"]
[Round "4.7"]
[White "Tsolakidou, Stavroula"]
[Black "Paehtz, Elisabeth"]
[Result "1/2-1/2"]
[Annotator "TA"]
[ECO "B33"]
[WhiteElo "2451"]
[BlackElo "2428"]
[PlyCount "64"]
[EventDate "2024.11.06"]
[EventType "team-tourn"]
[EventCountry "GER"]
[SourceTitle "playchess.com"]
[Source "ChessBase"]
[SourceQuality "1"]
[TimeControl "40/5400+30:1800+30"]

{[%evp 19,64,0,1,8,21,13,21,17,5,15,31,12,25,23,20,18,18,0,0,-34,-11,-14,-18,-28,-33,-50,-45,-44,-41,-51,-49,-39,0,0,0,0,0,0,0,0,0,0,0,0,0,0,0]} 1. e4 {[%emt 0:00:03]} c5 {[%emt 0:00:15]} 2. Nf3 {[%emt 0:00:11]} Nc6 {[%emt 0:00:34]} 3. d4 {[%emt 0:00:10]} cxd4 {[%emt 0:00:03]} 4. Nxd4 {[%emt 0:00:05]} Nf6 {[%emt 0:00:02]} 5. Nc3 {[%emt 0:00:07]} e5 {[%emt 0:00:03]} 6. Ndb5 {[%emt 0:00:07]} d6 {[%emt 0:00:03]} 7. Nd5 {[%emt 0:01:00]} Nxd5 {[%emt 0:00:05]} 8. exd5 {[%emt 0:00:04]} Nb8 {[%emt 0:00:03]} 9. a4 {[%emt 0:00:31]} Be7 {[%emt 0:00:06]} 10. Be2 {[%emt 0:03:17]} O-O {[%emt 0:00:07][%cal Bh8f8,Bf8f6,Bf6h6][%mdl 32]} 11. O-O {[%emt 0:06:38] B33: Sicilian: Pelikan and Sveshnikov Variations.} Nd7 {[%emt 0:00:04]} 12. Bd2 {[%emt 0:05:46] Recently 12.b4 got a lot of attention.} a6 {[%emt 0:00:32]} 13. Na3 {[%emt 0:02:56]} f5 {[%emt 0:00:06][%cal Bf7f5,Bf5f4][%mdl 32]} 14. a5 {[%emt 0:04:02]} f4 {[%emt 0:00:05]} 15. Bb4 {[%emt 0:07:54]} Rf6 {[%emt 0:01:28]} 16. Nc4 {[%emt 0:02:10]} Rh6 {[%emt 0:00:07]} 17. Ra3 $146 {[%emt 0:15:16]} (17. Re1 Bf8 18. Ra3 Qg5 19. Bf1 Nf6 20. Bxd6 e4 21. Bxf8 Bg4 22. Qd4 Rxf8 23. Rxe4 Nxe4 24. Qxe4 {½-½ Lecroq,M (2568)-Edwards,J (2525) W-ch32 final email 2020}) 17... Bf8 {[%emt 0:00:06]} 18. Bg4 {[%emt 0:15:35] [#]} Nf6 {[%emt 0:08:50]} 19. Be6+ {[%emt 0:06:53]} Bxe6 {[%emt 0:09:04]} 20. dxe6 {[%emt 0:00:05][%cal Rb4d6]} Qe8 $1 {[%emt 0:09:25]} 21. e7 {[%emt 0:18:48]} Qxe7 {[%emt 0:03:30]} 22. Bxd6 {[%emt 0:06:29]} Qe6 {[%emt 0:00:16]} 23. Bxf8 $1 {[%emt 0:00:34]} Rxf8 {[%emt 0:08:27]} 24. Qe2 {[%emt 0:01:47][%cal Of1d1]} e4 {[%emt 0:00:47] Black has a king side majority} 25. Rd1 {[%emt 0:00:36]} Rg6 {[%emt 0:07:50] [#] ...f3 would now be deadly.} 26. f3 {[%emt 0:01:14] The position is equal.} Qf5 {[%emt 0:05:59]} 27. Nd6 {[%emt 0:00:45][%csl LRb7,LRe4,LRf5]} Qc5+ {[%emt 0:00:17]} 28. Kh1 {[%emt 0:00:49]} exf3 $1 {[%emt 0:03:12]} 29. Rxf3 {[%emt 0:00:25] and Qe6+ would now be decisive} Ng4 {[%emt 0:03:18]} 30. Qc4+ {[%emt 0:00:32]} Qxc4 {[%emt 0:00:05]} 31. Nxc4 {[%emt 0:00:02]} Re6 {[%emt 0:01:56]} 32. h3 {[%emt 0:01:00]} Ne3 {[%emt 0:04:32] Weighted Error Value: White=0.05 (flawless) /Black=0.04 (flawless)   Inaccurate:     	White=1     	Black=1      OK:         	White=10    	Black=9      Best:        	White=2     	Black=4      Strong:       	White=1     	Black=2} 1/2-1/2

[Event "Frauenbundesliga 2024-25"]
[Site "Germany"]
[Date "2025.01.26"]
[Round "4.7"]
[White "Voicu-Jagodzinsky, Carmen"]
[Black "Klek, Hanna Marie"]
[Result "0-1"]
[Annotator "TA"]
[ECO "C54"]
[WhiteElo "2238"]
[BlackElo "2290"]
[PlyCount "116"]
[EventDate "2024.11.06"]
[EventType "team-tourn"]
[EventCountry "GER"]
[SourceTitle "playchess.com"]
[Source "ChessBase"]
[SourceQuality "1"]
[TimeControl "40/5400+30:1800+30"]

{[%evp 10,116,10,12,19,12,15,13,11,8,12,0,20,23,25,23,39,27,45,0,0,0,1,0,25,-14,114,36,38,23,14,0,35,-43,-41,-45,-29,-43,0,0,0,-11,0,-57,-60,-48,-74,-80,0,0,0,0,0,-14,-17,-30,-21,-51,-31,-62,-71,-58,-57,-116,-103,-182,-177,-226,-147,-163,-142,-138,-141,-172,-159,-225,-176,-335,-244,-350,-342,-322,-268,-339,-328,-418,-417,-422,-397,-431,-425,-439,-440,-466,-473,-469,-442,-783,-554,-978,-975,-1565,-1575,-5137,-5126,-5124,-3760,-2990,-2300]} 1. e4 {[%emt 0:00:03]} e5 {[%emt 0:00:05]} 2. Nf3 {[%emt 0:00:05]} Nc6 {[%emt 0:00:04]} 3. Bc4 {[%emt 0:00:15]} Bc5 {[%emt 0:00:08]} 4. c3 {[%emt 0:00:06]} Nf6 {[%emt 0:00:05]} 5. d3 {[%emt 0:00:19]} d6 {[%emt 0:00:12]} 6. O-O {[%emt 0:00:34]} a5 {[%emt 0:00:48] C54: Giuoco Piano: 4 c3 Nf6, main lines with 5 d4 and 5 d3.} 7. Re1 {[%emt 0:00:45]} h6 {[%emt 0:05:26]} 8. a4 {[%emt 0:04:13]} O-O {[%emt 0:01:29] The position is equal.} 9. h3 {[%emt 0:00:18]} Re8 {[%emt 0:05:11]} 10. Nbd2 {[%emt 0:03:44][%cal Bb1d2,Bd2f1,Bf1g3][%mdl 32]} Ba7 {[%emt 0:02:40]} 11. Nf1 {[%emt 0:04:25]} Be6 {[%emt 0:02:00]} 12. Bb5 {[%emt 0:02:57]} Bd7 {[%emt 0:02:51]} 13. Ng3 {[%emt 0:01:45]} Ne7 {[%emt 0:01:45][%cal Bc6e7,Be7c8,Bc8d6][%mdl 32]} 14. Nh4 {[%emt 0:06:05]} c6 {[%emt 0:03:25] The position is symmetric and equal} 15. Bc4 {[%emt 0:00:03]} d5 $36 {[%emt 0:00:32][%mdl 2048] Black fights for an advantage.} 16. Ba2 {[%emt 0:00:47]} Nc8 $146 {[%emt 0:11:31][%cal Of6e4]} (16... Ng6 17. Nhf5 Be6 18. Qf3 dxe4 19. dxe4 Bxa2 20. Rxa2 Re6 21. b3 Qf8 22. Rd1 Rd8 23. Rxd8 Qxd8 {1-0 Bocharov,I (2563)-Belyakov,B (2459) Wch Rapid St Petersburg 2018 (2)}) 17. Qf3 {[%emt 0:07:15] [#]} Nxe4 {[%emt 0:04:48]} 18. dxe4 {[%emt 0:13:24]} (18. Rxe4 $16 {[%cal Og3h5] And now Nh5! would win.} Nd6 19. Rg4) 18... Qxh4 $14 {[%emt 0:00:15]} 19. exd5 {[%emt 0:00:19]} Nd6 {[%emt 0:02:35]} 20. Be3 {[%emt 0:00:57]} Bxe3 {[%emt 0:04:49]} 21. Rxe3 {[%emt 0:11:28]} ({Better is} 21. Qxe3 $14 Qxa4 22. Qc5) 21... e4 $1 $15 {[%emt 0:04:44] Black has a king side majority} 22. Qh5 {[%emt 0:05:42]} Qxh5 {[%emt 0:01:37]} 23. Nxh5 {[%emt 0:00:02]} Re5 {[%emt 0:01:15]} 24. dxc6 {[%emt 0:04:56]} Bxc6 {[%emt 0:00:50]} 25. Ng3 {[%emt 0:00:20]} Rd8 {[%emt 0:11:42][%cal Od6f5]} 26. Rd1 {[%emt 0:07:32]} (26. Ree1 $11) 26... Bxa4 {[%emt 0:00:37]} 27. Rd4 {[%emt 0:00:08]} Bc6 {[%emt 0:00:13]} 28. f3 {[%emt 0:01:30][%cal Rf3e4]} Ree8 {[%emt 0:04:21]} (28... Rb5 $17 {...exf3 is the strong threat.} 29. fxe4 Rxb2) 29. fxe4 $11 {[%emt 0:01:39]} Nb5 {[%emt 0:01:54]} 30. Rxd8 {[%emt 0:03:29]} Rxd8 {[%emt 0:00:06]} 31. Rf3 {[%emt 0:00:28]} Rd7 {[%emt 0:02:39]} 32. Rf2 {[%emt 0:09:23]} Nc7 {[%emt 0:03:30]} 33. h4 {[%emt 0:05:46]} Ne6 {[%emt 0:01:51]} 34. e5 {[%emt 0:01:27]} Rd1+ {[%emt 0:02:01]} 35. Kh2 {[%emt 0:00:11]} Bd5 $1 {[%emt 0:02:54]} 36. c4 {[%emt 0:01:01]} (36. Bxd5 $15 Rxd5 37. Re2) 36... Bc6 $17 {[%emt 0:00:38]} 37. Nf5 {[%emt 0:00:06] [#]} (37. c5 $17) 37... Nc5 $1 $19 {[%emt 0:03:12]} 38. e6 {[%emt 0:01:43]} (38. Ne7+ $142 Kf8 39. Nxc6 bxc6 40. Rf5) 38... Nxe6 {[%emt 0:03:26]} 39. c5 {[%emt 0:00:18]} Re1 {[%emt 0:02:44]} (39... Nxc5 40. Ne7+ Kh7 41. Bxf7 $16) 40. Nd6 {[%emt 0:03:38] [#]} f6 {[%emt 0:00:54]} (40... Nxc5 41. Rxf7 Kh7 42. Nf5 $16) 41. Rd2 {[%emt 0:30:50][%cal Od6b7]} Kf8 {[%emt 0:35:20]} 42. Rc2 {[%emt 0:00:00]} (42. Bxe6 $17 Rxe6 43. Nc4) 42... Nf4 {[%emt 0:00:00]} 43. Kg3 {[%emt 0:00:00]} (43. Bc4 {only move.}) 43... Nd3 {[%emt 0:04:53]} 44. Bf7 {[%emt 0:00:00]} (44. Rd2 {was called for.} Nxc5 45. Kf2) 44... Re3+ {[%emt 0:00:00]} 45. Kh2 {[%emt 0:00:00]} Re5 {[%emt 0:00:00]} 46. Bg6 {[%emt 0:00:00]} Nf4 {[%emt 0:00:00]} ({Weaker is} 46... Nxc5 47. Nc4 Be4 48. Bxe4 Rxe4 49. Nxa5 $17) 47. Bf5 {[%emt 0:00:00]} Nxg2 {[%emt 0:00:00]} 48. Bc8 {[%emt 0:00:00]} Ne1 {[%emt 0:00:00]} ({Resist} 48... Nxh4 49. Bxb7 Nf3+ 50. Kg3 $19) 49. Rc3 {[%emt 0:00:00]} Re2+ {[%emt 0:00:00] Black is clearly winning.} 50. Kh3 {[%emt 0:00:00]} Rxb2 {[%emt 0:00:00]} 51. Nc4 {[%emt 0:00:00]} Ra2 {[%emt 0:00:00]} 52. Nd6 {[%emt 0:00:35]} Nf3 {[%emt 0:00:00]} 53. Nxb7 {[%emt 0:02:02]} (53. Bxb7 $142 Ng1+ 54. Kg4 Bd7+ (54... Ne2 $2 55. Rc4 $19) 55. Kh5) 53... h5 {[%emt 0:00:00]} 54. Kg3 {[%emt 0:02:13]} Ng1 {[%emt 0:00:04]} 55. Rb3 {[%emt 0:01:09]} g5 {[%emt 0:01:20] ( -> ...Rg2#)} 56. hxg5 {[%emt 0:01:22]} fxg5 {[%emt 0:00:09]} 57. Bh3 {[%emt 0:00:37] Prevents Rg2+.} Ne2+ {[%emt 0:00:16]} 58. Kf2 {[%emt 0:00:26]} Nd4+ {[%emt 0:00:07] Weighted Error Value: White=0.61/Black=0.21 (precise)   Mistake:       	White=10    	Black=2      Inaccurate:     	White=6     	Black=3      OK:         	White=16    	Black=22     Best:        	White=2     	Black=5      Strong:       	---       	Black=2} 0-1